[Event "Late-Titled-Tuesday-Blitz-July-09-2024"]
[Site "Chess.com"]
[Date "2024.07.09"]
[Round "2"]
[White "TOCANTINS_TO"]
[Black "realburq"]
[Result "0-1"]
[WhiteElo "2040"]
[BlackElo "2440"]
[TimeControl "180+1"]
[EndTime "14:16:10 PDT"]
[Termination "realburq won by resignation"]

1. e4 {[%clk 0:03:00.9]} 1... c5 {[%clk 0:02:59.5]} 2. Nf3 {[%clk 0:03:00.6]}
2... e6 {[%clk 0:02:59.7]} 3. d3 {[%clk 0:02:59.6]} 3... Nc6 {[%clk 0:02:56.6]}
4. Nbd2 {[%clk 0:03:00]} 4... d5 {[%clk 0:02:54.1]} 5. g3 {[%clk 0:03:00]} 5...
g6 {[%clk 0:02:52.3]} 6. Bg2 {[%clk 0:03:00]} 6... Nge7 {[%clk 0:02:52.6]} 7.
O-O {[%clk 0:02:59.8]} 7... Bg7 {[%clk 0:02:53]} 8. Qe2 {[%clk 0:02:58.5]} 8...
O-O {[%clk 0:02:52.6]} 9. Rd1 {[%clk 0:02:52]} 9... b6 {[%clk 0:02:42.7]} 10.
Nf1 {[%clk 0:02:46.1]} 10... Bb7 {[%clk 0:02:37.6]} 11. h4 {[%clk 0:02:37.2]}
11... Rc8 {[%clk 0:02:33.7]} 12. e5 {[%clk 0:02:31.8]} 12... Qc7 {[%clk
0:02:11]} 13. Bf4 {[%clk 0:02:31.4]} 13... d4 {[%clk 0:02:11.4]} 14. N1h2 {[%clk
0:02:21.7]} 14... Nd5 {[%clk 0:02:11.4]} 15. Ng4 {[%clk 0:01:52.1]} 15... Nxf4
{[%clk 0:02:06.9]} 16. gxf4 {[%clk 0:01:52.1]} 16... Kh8 {[%clk 0:02:05.9]} 17.
Ng5 {[%clk 0:01:45.4]} 17... Ne7 {[%clk 0:01:59.7]} 18. Bxb7 {[%clk 0:01:35]}
18... Qxb7 {[%clk 0:02:00.6]} 19. Ne4 {[%clk 0:01:33.3]} 19... Nf5 {[%clk
0:01:57.5]} 20. Ngf6 {[%clk 0:01:26.9]} 20... Bxf6 {[%clk 0:01:46.5]} 21. Nxf6
{[%clk 0:01:25]} 21... Nxh4 {[%clk 0:01:44.8]} 22. Ne4 {[%clk 0:01:18.7]} 22...
f5 {[%clk 0:01:33.3]} 23. f3 {[%clk 0:00:39.3]} 23... fxe4 {[%clk 0:01:32.1]}
24. fxe4 {[%clk 0:00:39.6]} 24... Rxf4 {[%clk 0:01:31.2]} 25. Rf1 {[%clk
0:00:36.8]} 25... Rcf8 {[%clk 0:01:30.8]} 26. Qh2 {[%clk 0:00:36.1]} 26... Nf3+
{[%clk 0:01:23.5]} 27. Rxf3 {[%clk 0:00:34.8]} 27... Rxf3 {[%clk 0:01:24.4]} 0-1

[Event "Late-Titled-Tuesday-Blitz-July-09-2024"]
[Site "Chess.com"]
[Date "2024.07.09"]
[Round "2"]
[White "GMRafpig"]
[Black "fugadelafuga"]
[Result "1-0"]
[WhiteElo "2774"]
[BlackElo "2427"]
[TimeControl "180+1"]
[EndTime "14:16:21 PDT"]
[Termination "GMRafpig won by resignation"]

1. c4 {[%clk 0:03:00.9]} 1... Nf6 {[%clk 0:02:57.7]} 2. Nc3 {[%clk 0:03:00.4]}
2... e6 {[%clk 0:02:57.5]} 3. e4 {[%clk 0:03:00.2]} 3... e5 {[%clk 0:02:55.4]}
4. Nf3 {[%clk 0:02:58.2]} 4... Nc6 {[%clk 0:02:55.2]} 5. a3 {[%clk 0:02:49.6]}
5... a5 {[%clk 0:02:43.1]} 6. Be2 {[%clk 0:02:44.4]} 6... Bc5 {[%clk 0:02:42.8]}
7. Nxe5 {[%clk 0:02:42.4]} 7... Bxf2+ {[%clk 0:02:38.4]} 8. Kxf2 {[%clk
0:02:41.9]} 8... Nxe5 {[%clk 0:02:39.3]} 9. d4 {[%clk 0:02:41.1]} 9... Ng6
{[%clk 0:02:32.6]} 10. e5 {[%clk 0:02:39.6]} 10... Ng8 {[%clk 0:02:31.9]} 11.
Ne4 {[%clk 0:02:19]} 11... b6 {[%clk 0:02:24.1]} 12. Bg5 {[%clk 0:02:07.2]}
12... N8e7 {[%clk 0:02:20.8]} 13. Bf3 {[%clk 0:02:07.1]} 13... Rb8 {[%clk
0:02:13.4]} 14. h4 {[%clk 0:01:59.4]} 14... h6 {[%clk 0:02:08.8]} 15. h5 {[%clk
0:01:52]} 15... hxg5 {[%clk 0:02:07.1]} 16. hxg6 {[%clk 0:01:51.9]} 16... Nxg6
{[%clk 0:02:05]} 17. Rxh8+ {[%clk 0:01:51.2]} 17... Nxh8 {[%clk 0:02:04.7]} 18.
Qh1 {[%clk 0:01:51.9]} 18... Ng6 {[%clk 0:02:03.9]} 19. Qh7 {[%clk 0:01:52.1]}
19... Kf8 {[%clk 0:01:57.7]} 20. Bh5 {[%clk 0:01:47.7]} 20... Nf4 {[%clk
0:01:56.6]} 21. Qh8+ {[%clk 0:01:38.9]} 21... Ke7 {[%clk 0:01:49]} 22. Qxg7
{[%clk 0:01:39.5]} 22... Nxh5 {[%clk 0:01:42.9]} 23. Qxg5+ {[%clk 0:01:38.8]}
23... Ke8 {[%clk 0:01:42.7]} 24. Qxh5 {[%clk 0:01:36.1]} 24... Bb7 {[%clk
0:01:34.4]} 25. Nf6+ {[%clk 0:01:29.1]} 25... Ke7 {[%clk 0:01:33.2]} 26. Qg5
{[%clk 0:01:28.9]} 26... Qh8 {[%clk 0:01:23.7]} 27. Re1 {[%clk 0:00:54.1]} 27...
Kd8 {[%clk 0:00:55.1]} 28. Nd5+ {[%clk 0:00:51.6]} 28... Kc8 {[%clk 0:00:55]}
29. Ne7+ {[%clk 0:00:49.4]} 1-0

[Event "Late-Titled-Tuesday-Blitz-July-09-2024"]
[Site "Chess.com"]
[Date "2024.07.09"]
[Round "2"]
[White "DeTimmerman"]
[Black "i_like_explosions"]
[Result "0-1"]
[WhiteElo "2766"]
[BlackElo "2535"]
[TimeControl "180+1"]
[EndTime "14:16:40 PDT"]
[Termination "i_like_explosions won by resignation"]

1. b4 {[%clk 0:02:59.5]} 1... Nf6 {[%clk 0:02:57.7]} 2. Bb2 {[%clk 0:02:59.3]}
2... d5 {[%clk 0:02:57.4]} 3. e3 {[%clk 0:02:58.6]} 3... e6 {[%clk 0:02:57]} 4.
b5 {[%clk 0:02:58.8]} 4... a6 {[%clk 0:02:56.6]} 5. a4 {[%clk 0:02:59.3]} 5...
axb5 {[%clk 0:02:57]} 6. axb5 {[%clk 0:03:00.2]} 6... Rxa1 {[%clk 0:02:57.3]} 7.
Bxa1 {[%clk 0:03:01.1]} 7... c5 {[%clk 0:02:54.3]} 8. c4 {[%clk 0:03:01.4]} 8...
Be7 {[%clk 0:02:51.4]} 9. Nf3 {[%clk 0:03:01.7]} 9... O-O {[%clk 0:02:51.7]} 10.
Be2 {[%clk 0:03:02.1]} 10... Nbd7 {[%clk 0:02:51.7]} 11. cxd5 {[%clk 0:03:01.9]}
11... exd5 {[%clk 0:02:51.4]} 12. O-O {[%clk 0:03:02.8]} 12... Nb6 {[%clk
0:02:51.3]} 13. d4 {[%clk 0:02:58.6]} 13... c4 {[%clk 0:02:49.8]} 14. Nc3 {[%clk
0:02:59.1]} 14... Bf5 {[%clk 0:02:49.5]} 15. Nd2 {[%clk 0:02:54.6]} 15... Qd6
{[%clk 0:02:47.7]} 16. Re1 {[%clk 0:02:39.5]} 16... Ra8 {[%clk 0:02:45.5]} 17.
Bb2 {[%clk 0:02:38.3]} 17... Qb4 {[%clk 0:02:44.1]} 18. Qc1 {[%clk 0:02:34.7]}
18... Na4 {[%clk 0:02:42.9]} 19. Nxa4 {[%clk 0:02:33.4]} 19... Rxa4 {[%clk
0:02:38.4]} 20. e4 {[%clk 0:02:20.5]} 20... Nxe4 {[%clk 0:02:34.6]} 21. Nxe4
{[%clk 0:02:18.3]} 21... Bxe4 {[%clk 0:02:34.3]} 22. Bc3 {[%clk 0:01:56.1]}
22... Qd6 {[%clk 0:02:32.9]} 23. Bd1 {[%clk 0:01:45.8]} 23... Ra8 {[%clk
0:02:30.2]} 24. Bc2 {[%clk 0:01:41.2]} 24... Bxc2 {[%clk 0:02:26.6]} 25. Qxc2
{[%clk 0:01:42.1]} 25... Bf6 {[%clk 0:02:22.7]} 26. h3 {[%clk 0:01:36.9]} 26...
g6 {[%clk 0:02:22.1]} 27. Qb2 {[%clk 0:01:33.4]} 27... Kg7 {[%clk 0:02:19.7]}
28. Ra1 {[%clk 0:01:18.1]} 28... Qd8 {[%clk 0:02:03.2]} 29. Rxa8 {[%clk
0:01:13.9]} 29... Qxa8 {[%clk 0:02:04.1]} 30. Qb4 {[%clk 0:01:14.3]} 30... Qa2
{[%clk 0:01:59.4]} 31. g3 {[%clk 0:01:13.2]} 31... Qc2 {[%clk 0:01:57.5]} 32. h4
{[%clk 0:01:13.4]} 32... Qd1+ {[%clk 0:01:55.5]} 33. Kg2 {[%clk 0:01:13.6]}
33... Bxd4 {[%clk 0:01:55.1]} 34. b6 {[%clk 0:00:59.8]} 34... Qd3 {[%clk
0:01:41.5]} 35. Bxd4+ {[%clk 0:00:59.8]} 35... Qxd4 {[%clk 0:01:42.4]} 36. Qd6
{[%clk 0:01:00.5]} 36... Qe4+ {[%clk 0:01:29.2]} 37. Kh2 {[%clk 0:01:00.6]}
37... d4 {[%clk 0:01:28.1]} 38. f3 {[%clk 0:00:56.7]} 38... Qe3 {[%clk
0:01:24.6]} 39. Qc7 {[%clk 0:00:54.2]} 39... c3 {[%clk 0:01:20.8]} 40. Qxb7
{[%clk 0:00:54.1]} 40... c2 {[%clk 0:01:19.9]} 0-1

[Event "Late-Titled-Tuesday-Blitz-July-09-2024"]
[Site "Chess.com"]
[Date "2024.07.09"]
[Round "2"]
[White "rpragchess"]
[Black "MKlose11"]
[Result "1-0"]
[WhiteElo "3109"]
[BlackElo "2658"]
[TimeControl "180+1"]
[EndTime "14:16:56 PDT"]
[Termination "rpragchess won by resignation"]

1. d4 {[%clk 0:03:00.3]} 1... Nf6 {[%clk 0:02:57.2]} 2. Bg5 {[%clk 0:02:59.8]}
2... c5 {[%clk 0:02:55.7]} 3. d5 {[%clk 0:02:59.3]} 3... d6 {[%clk 0:02:55.1]}
4. Nc3 {[%clk 0:02:59]} 4... g6 {[%clk 0:02:55.6]} 5. e4 {[%clk 0:02:59]} 5...
Bg7 {[%clk 0:02:55.7]} 6. f4 {[%clk 0:02:59.1]} 6... O-O {[%clk 0:02:54.2]} 7.
Nf3 {[%clk 0:02:59.4]} 7... b5 {[%clk 0:02:51.9]} 8. Bxf6 {[%clk 0:02:34.9]}
8... Bxf6 {[%clk 0:02:47]} 9. Bxb5 {[%clk 0:02:34.9]} 9... Qa5 {[%clk
0:02:42.2]} 10. e5 {[%clk 0:02:28.4]} 10... Bg7 {[%clk 0:02:42.3]} 11. O-O
{[%clk 0:02:27.6]} 11... Bg4 {[%clk 0:02:37]} 12. Qe1 {[%clk 0:02:20.8]} 12...
a6 {[%clk 0:02:32.8]} 13. Bc4 {[%clk 0:02:19.2]} 13... Bxf3 {[%clk 0:02:26]} 14.
Rxf3 {[%clk 0:02:18.2]} 14... Nd7 {[%clk 0:02:25.9]} 15. e6 {[%clk 0:02:15.5]}
15... Nb6 {[%clk 0:02:24.9]} 16. Bf1 {[%clk 0:01:52.7]} 16... f5 {[%clk
0:02:24]} 17. Rd1 {[%clk 0:01:41.3]} 17... Rab8 {[%clk 0:02:12]} 18. h3 {[%clk
0:01:18.2]} 18... Qb4 {[%clk 0:02:04.5]} 19. b3 {[%clk 0:01:13.2]} 19... a5
{[%clk 0:02:04.6]} 20. Qd2 {[%clk 0:01:03.5]} 20... a4 {[%clk 0:02:03.5]} 21.
Nb5 {[%clk 0:01:03.4]} 21... Qxd2 {[%clk 0:01:59.8]} 22. Rxd2 {[%clk 0:01:04.3]}
22... axb3 {[%clk 0:02:00.2]} 23. cxb3 {[%clk 0:01:01.3]} 23... Ra8 {[%clk
0:01:57.8]} 24. Bc4 {[%clk 0:00:54.6]} 24... Ra5 {[%clk 0:01:52.4]} 25. Kh2
{[%clk 0:00:42.7]} 25... Rfa8 {[%clk 0:01:51.9]} 26. Rff2 {[%clk 0:00:40.1]}
26... Rb8 {[%clk 0:01:39.3]} 27. g4 {[%clk 0:00:35]} 27... fxg4 {[%clk
0:01:38.3]} 28. hxg4 {[%clk 0:00:35.9]} 28... Nc8 {[%clk 0:01:37.7]} 29. a4
{[%clk 0:00:31.9]} 29... Nb6 {[%clk 0:01:37.3]} 30. Rc2 {[%clk 0:00:32.5]} 30...
Nxc4 {[%clk 0:01:32.9]} 31. Rxc4 {[%clk 0:00:32.3]} 31... Raxb5 {[%clk
0:01:33.4]} 32. axb5 {[%clk 0:00:32.5]} 32... Rxb5 {[%clk 0:01:34.3]} 33. Rf3
{[%clk 0:00:22.6]} 33... h6 {[%clk 0:01:28.4]} 34. Ra4 {[%clk 0:00:22.3]} 34...
Bf6 {[%clk 0:01:26.1]} 35. g5 {[%clk 0:00:20]} 35... hxg5 {[%clk 0:01:21.3]} 36.
fxg5 {[%clk 0:00:20.9]} 36... Be5+ {[%clk 0:01:14.4]} 37. Kh3 {[%clk 0:00:20.2]}
37... Rb8 {[%clk 0:01:13.8]} 38. Ra7 {[%clk 0:00:20.3]} 38... Re8 {[%clk
0:01:13.4]} 39. Rf7 {[%clk 0:00:19.9]} 1-0

[Event "Late-Titled-Tuesday-Blitz-July-09-2024"]
[Site "Chess.com"]
[Date "2024.07.09"]
[Round "2"]
[White "vellottiwizard"]
[Black "Ash15K"]
[Result "1-0"]
[WhiteElo "2699"]
[BlackElo "2304"]
[TimeControl "180+1"]
[EndTime "14:16:57 PDT"]
[Termination "vellottiwizard won by checkmate"]

1. e4 {[%clk 0:03:00.9]} 1... c5 {[%clk 0:02:59.4]} 2. Nf3 {[%clk 0:03:01.3]}
2... d6 {[%clk 0:02:59.7]} 3. d4 {[%clk 0:03:01.9]} 3... cxd4 {[%clk 0:03:00.3]}
4. Nxd4 {[%clk 0:03:02.8]} 4... Nf6 {[%clk 0:03:00.8]} 5. Nc3 {[%clk 0:03:03.5]}
5... a6 {[%clk 0:03:01.3]} 6. Be3 {[%clk 0:03:03.9]} 6... e5 {[%clk 0:03:01]} 7.
Nb3 {[%clk 0:03:04.4]} 7... Be7 {[%clk 0:03:01.6]} 8. f4 {[%clk 0:03:04.5]} 8...
exf4 {[%clk 0:03:00.7]} 9. Bxf4 {[%clk 0:03:05.4]} 9... Bg4 {[%clk 0:02:58.9]}
10. Be2 {[%clk 0:03:03.1]} 10... Bxe2 {[%clk 0:02:58.8]} 11. Qxe2 {[%clk
0:03:04]} 11... O-O {[%clk 0:02:58.4]} 12. O-O-O {[%clk 0:03:04]} 12... b5
{[%clk 0:02:52.3]} 13. e5 {[%clk 0:02:59.5]} 13... Nfd7 {[%clk 0:02:51.1]} 14.
exd6 {[%clk 0:02:59.7]} 14... Bf6 {[%clk 0:02:51.6]} 15. Qf3 {[%clk 0:02:56]}
15... Ra7 {[%clk 0:02:47.9]} 16. Nd5 {[%clk 0:02:55.5]} 16... Ne5 {[%clk
0:02:39.7]} 17. Qg3 {[%clk 0:02:46.3]} 17... Nc4 {[%clk 0:02:35.6]} 18. c3
{[%clk 0:02:36.7]} 18... a5 {[%clk 0:02:32.6]} 19. Nc5 {[%clk 0:02:04.9]} 19...
b4 {[%clk 0:02:21.4]} 20. Ne4 {[%clk 0:02:02.6]} 20... Nd7 {[%clk 0:02:13.4]}
21. Nexf6+ {[%clk 0:01:50.5]} 21... Nxf6 {[%clk 0:02:12.6]} 22. Bg5 {[%clk
0:01:49.7]} 22... Ne4 {[%clk 0:02:08.8]} 23. Bxd8 {[%clk 0:01:47.8]} 23... Nxg3
{[%clk 0:02:09.1]} 24. Ne7+ {[%clk 0:01:48.5]} 24... Kh8 {[%clk 0:02:08]} 25.
hxg3 {[%clk 0:01:49.4]} 25... h6 {[%clk 0:01:52.1]} 26. Bc7 {[%clk 0:01:45.1]}
26... bxc3 {[%clk 0:01:46.6]} 27. bxc3 {[%clk 0:01:46]} 27... Rb7 {[%clk
0:01:38.5]} 28. Rh4 {[%clk 0:01:35.9]} 28... Na3 {[%clk 0:01:36.4]} 29. Ra4
{[%clk 0:01:26.9]} 29... Rb1+ {[%clk 0:01:29.1]} 30. Kd2 {[%clk 0:01:27]} 30...
Rb2+ {[%clk 0:01:29.5]} 31. Kd3 {[%clk 0:01:27.2]} 31... Nb5 {[%clk 0:01:19.4]}
32. Rxa5 {[%clk 0:01:26.1]} 32... Nxd6 {[%clk 0:01:10.5]} 33. Bxd6 {[%clk
0:01:27]} 33... Rd8 {[%clk 0:01:09]} 34. Kc4 {[%clk 0:01:25.2]} 34... Rxg2
{[%clk 0:01:09.1]} 35. a4 {[%clk 0:01:18.8]} 35... Rxg3 {[%clk 0:01:07.6]} 36.
Bxg3 {[%clk 0:01:18.6]} 36... Rxd1 {[%clk 0:01:07]} 37. Rd5 {[%clk 0:01:07.3]}
37... Rg1 {[%clk 0:01:02.4]} 38. Bd6 {[%clk 0:01:05.2]} 38... g5 {[%clk
0:00:59.4]} 39. a5 {[%clk 0:01:05]} 39... h5 {[%clk 0:00:55.3]} 40. a6 {[%clk
0:01:02.6]} 40... h4 {[%clk 0:00:55.3]} 41. Ra5 {[%clk 0:01:02]} 41... Rg4+
{[%clk 0:00:49]} 42. Kb3 {[%clk 0:01:01.6]} 42... h3 {[%clk 0:00:45.6]} 43. a7
{[%clk 0:01:01]} 43... h2 {[%clk 0:00:46.5]} 44. a8=Q+ {[%clk 0:01:01.4]} 44...
Kh7 {[%clk 0:00:46.8]} 45. Bxh2 {[%clk 0:00:59.7]} 45... Rh4 {[%clk 0:00:47.1]}
46. Qg8+ {[%clk 0:00:59.5]} 46... Kh6 {[%clk 0:00:46.9]} 47. Qh8# {[%clk
0:01:00.1]} 1-0

[Event "Late-Titled-Tuesday-Blitz-July-09-2024"]
[Site "Chess.com"]
[Date "2024.07.09"]
[Round "2"]
[White "klimkoj"]
[Black "AmbartsumianTyhran2012"]
[Result "1/2-1/2"]
[WhiteElo "2860"]
[BlackElo "2571"]
[TimeControl "180+1"]
[EndTime "14:16:58 PDT"]
[Termination "Game drawn by repetition"]

1. c4 {[%clk 0:03:00.6]} 1... e6 {[%clk 0:02:50.4]} 2. Nc3 {[%clk 0:03:00.4]}
2... d5 {[%clk 0:02:50.9]} 3. d4 {[%clk 0:03:01.3]} 3... Nf6 {[%clk 0:02:50.6]}
4. cxd5 {[%clk 0:03:01.6]} 4... exd5 {[%clk 0:02:50.5]} 5. Bg5 {[%clk
0:03:01.8]} 5... c6 {[%clk 0:02:47.1]} 6. e3 {[%clk 0:03:02.2]} 6... h6 {[%clk
0:02:46]} 7. Bh4 {[%clk 0:03:02.2]} 7... Bf5 {[%clk 0:02:45.8]} 8. Qf3 {[%clk
0:03:02.1]} 8... Qb6 {[%clk 0:02:45.5]} 9. Qxf5 {[%clk 0:02:28.2]} 9... Qxb2
{[%clk 0:02:43.8]} 10. Qc8+ {[%clk 0:02:28.1]} 10... Ke7 {[%clk 0:02:43]} 11.
Nd1 {[%clk 0:02:21.5]} 11... Qb4+ {[%clk 0:02:40.8]} 12. Ke2 {[%clk 0:02:20.2]}
12... g5 {[%clk 0:02:40.4]} 13. Bg3 {[%clk 0:02:15.7]} 13... Ne4 {[%clk
0:02:35.2]} 14. h4 {[%clk 0:01:52.6]} 14... Nd7 {[%clk 0:02:12]} 15. Qc7 {[%clk
0:01:37.2]} 15... g4 {[%clk 0:01:55.6]} 16. Nf3 {[%clk 0:01:17.2]} 16... Qc4+
{[%clk 0:01:53.3]} 17. Ke1 {[%clk 0:01:17]} 17... Qb4+ {[%clk 0:01:53.7]} 18.
Ke2 {[%clk 0:01:17.6]} 18... Ke6 {[%clk 0:01:27.4]} 19. a3 {[%clk 0:00:49.7]}
19... Qb5+ {[%clk 0:00:26.6]} 20. Ke1 {[%clk 0:00:49.5]} 20... Bb4+ {[%clk
0:00:27.5]} 21. axb4 {[%clk 0:00:48.1]} 21... Qxb4+ {[%clk 0:00:28.4]} 22. Ke2
{[%clk 0:00:48]} 22... Qb5+ {[%clk 0:00:09.5]} 23. Ke1 {[%clk 0:00:48.3]} 23...
Qb4+ {[%clk 0:00:10]} 24. Ke2 {[%clk 0:00:48.8]} 24... Qb5+ {[%clk 0:00:10.2]}
25. Ke1 {[%clk 0:00:49.3]} 25... Qb4+ {[%clk 0:00:10.7]} 1/2-1/2

[Event "Late-Titled-Tuesday-Blitz-July-09-2024"]
[Site "Chess.com"]
[Date "2024.07.09"]
[Round "2"]
[White "BaylavChess"]
[Black "MyDream003"]
[Result "1-0"]
[WhiteElo "2419"]
[BlackElo "2717"]
[TimeControl "180+1"]
[EndTime "14:17:01 PDT"]
[Termination "BaylavChess won by checkmate"]

1. Nf3 {[%clk 0:03:00.9]} 1... c5 {[%clk 0:02:59.1]} 2. e4 {[%clk 0:02:57.7]}
2... Nc6 {[%clk 0:02:58.6]} 3. d4 {[%clk 0:02:57.5]} 3... cxd4 {[%clk
0:02:58.7]} 4. Nxd4 {[%clk 0:02:58.4]} 4... Nf6 {[%clk 0:02:58.7]} 5. Nc3 {[%clk
0:02:58.5]} 5... d6 {[%clk 0:02:58.6]} 6. Bg5 {[%clk 0:02:58.4]} 6... e6 {[%clk
0:02:58.2]} 7. Qd2 {[%clk 0:02:56.6]} 7... Be7 {[%clk 0:02:56.1]} 8. O-O-O
{[%clk 0:02:47.4]} 8... O-O {[%clk 0:02:53.9]} 9. Kb1 {[%clk 0:02:37.3]} 9... a6
{[%clk 0:02:51.6]} 10. Nxc6 {[%clk 0:02:35.3]} 10... bxc6 {[%clk 0:02:52.5]} 11.
Bxf6 {[%clk 0:02:36.2]} 11... gxf6 {[%clk 0:02:48.5]} 12. Bc4 {[%clk 0:02:36]}
12... Kh8 {[%clk 0:02:46.1]} 13. Bb3 {[%clk 0:02:34]} 13... Rb8 {[%clk
0:02:42.5]} 14. f4 {[%clk 0:02:33.9]} 14... a5 {[%clk 0:02:37.1]} 15. Rhf1
{[%clk 0:02:30.7]} 15... Rg8 {[%clk 0:02:32.2]} 16. f5 {[%clk 0:02:30.3]} 16...
Qb6 {[%clk 0:02:23.7]} 17. Qh6 {[%clk 0:02:28.4]} 17... Qd8 {[%clk 0:02:06.8]}
18. Rd3 {[%clk 0:02:13.9]} 18... Qf8 {[%clk 0:02:06.3]} 19. Qh5 {[%clk
0:02:09.7]} 19... Rg5 {[%clk 0:02:02.4]} 20. Qh3 {[%clk 0:01:52.9]} 20... Qg7
{[%clk 0:01:54.3]} 21. fxe6 {[%clk 0:01:46.3]} 21... Rxg2 {[%clk 0:01:48.7]} 22.
Rg3 {[%clk 0:01:27.3]} 22... Rxg3 {[%clk 0:01:46.6]} 23. hxg3 {[%clk 0:01:28.2]}
23... Rxb3 {[%clk 0:01:34.2]} 24. axb3 {[%clk 0:01:20.2]} 24... fxe6 {[%clk
0:01:34.6]} 25. Qh5 {[%clk 0:01:18]} 25... Qf8 {[%clk 0:01:20]} 26. Rh1 {[%clk
0:01:11.9]} 26... Qg8 {[%clk 0:01:18.6]} 27. Qxa5 {[%clk 0:01:10.4]} 27... Bd7
{[%clk 0:01:09.6]} 28. Ne2 {[%clk 0:00:56.9]} 28... Qd8 {[%clk 0:01:01]} 29. Qh5
{[%clk 0:00:55.8]} 29... Qg8 {[%clk 0:01:01.1]} 30. Nf4 {[%clk 0:00:56]} 30...
Be8 {[%clk 0:00:58.8]} 31. Qh6 {[%clk 0:00:47.5]} 31... Bf7 {[%clk 0:00:59.1]}
32. b4 {[%clk 0:00:46.4]} 32... e5 {[%clk 0:00:50.9]} 33. Nh5 {[%clk 0:00:43]}
33... Bg6 {[%clk 0:00:51.4]} 34. Rf1 {[%clk 0:00:40.4]} 34... Qf7 {[%clk
0:00:50]} 35. g4 {[%clk 0:00:33.6]} 35... Qc4 {[%clk 0:00:49.3]} 36. Qg7# {[%clk
0:00:31.1]} 1-0

[Event "Late-Titled-Tuesday-Blitz-July-09-2024"]
[Site "Chess.com"]
[Date "2024.07.09"]
[Round "2"]
[White "Road2GM3000"]
[Black "Franmu14"]
[Result "0-1"]
[WhiteElo "2398"]
[BlackElo "2708"]
[TimeControl "180+1"]
[EndTime "14:17:06 PDT"]
[Termination "Franmu14 won by checkmate"]

1. d4 {[%clk 0:03:00.9]} 1... d5 {[%clk 0:02:59.8]} 2. c4 {[%clk 0:03:01.2]}
2... e6 {[%clk 0:03:00.1]} 3. Nc3 {[%clk 0:03:01.8]} 3... Nf6 {[%clk 0:03:00.5]}
4. cxd5 {[%clk 0:03:02.7]} 4... exd5 {[%clk 0:03:00.7]} 5. Bg5 {[%clk
0:03:03.3]} 5... c6 {[%clk 0:03:01.6]} 6. e3 {[%clk 0:03:03.9]} 6... Nbd7 {[%clk
0:03:02.1]} 7. Bd3 {[%clk 0:03:04.6]} 7... h6 {[%clk 0:03:02.6]} 8. Bh4 {[%clk
0:03:04.9]} 8... Be7 {[%clk 0:03:02.9]} 9. Nf3 {[%clk 0:03:05.6]} 9... O-O
{[%clk 0:03:01.5]} 10. Qc2 {[%clk 0:03:06.1]} 10... Re8 {[%clk 0:03:01.9]} 11.
O-O {[%clk 0:03:06.6]} 11... Ne4 {[%clk 0:02:56.5]} 12. Bxe7 {[%clk 0:03:05.8]}
12... Qxe7 {[%clk 0:02:56.1]} 13. Nd2 {[%clk 0:03:05.9]} 13... Nxc3 {[%clk
0:02:49.6]} 14. bxc3 {[%clk 0:03:06]} 14... Nf6 {[%clk 0:02:49]} 15. c4 {[%clk
0:03:06.3]} 15... dxc4 {[%clk 0:02:36.9]} 16. Nxc4 {[%clk 0:03:04.9]} 16... Nd5
{[%clk 0:02:35.9]} 17. a3 {[%clk 0:03:00.8]} 17... Bg4 {[%clk 0:02:32.6]} 18.
Ne5 {[%clk 0:03:00.5]} 18... Bh5 {[%clk 0:02:31.7]} 19. Rab1 {[%clk 0:02:58.3]}
19... f6 {[%clk 0:02:25.7]} 20. Nc4 {[%clk 0:02:36.8]} 20... Rac8 {[%clk
0:02:20.3]} 21. Qb3 {[%clk 0:02:26]} 21... b6 {[%clk 0:02:08.7]} 22. e4 {[%clk
0:02:20.1]} 22... Nf4 {[%clk 0:02:08]} 23. Nxb6+ {[%clk 0:02:16.7]} 23... Bf7
{[%clk 0:02:06.8]} 24. Nxc8 {[%clk 0:02:17.2]} 24... Qd7 {[%clk 0:02:04.1]} 25.
Bc4 {[%clk 0:02:05.2]} 25... Bxc4 {[%clk 0:02:03.7]} 26. Qxc4+ {[%clk
0:02:06.1]} 26... Kh8 {[%clk 0:02:03.4]} 27. f3 {[%clk 0:01:23.1]} 27... Rxc8
{[%clk 0:02:01.8]} 28. Rb2 {[%clk 0:01:07.2]} 28... Rd8 {[%clk 0:01:55.9]} 29.
Rd1 {[%clk 0:01:04.1]} 29... Qe8 {[%clk 0:01:54.4]} 30. Rc2 {[%clk 0:00:59.9]}
30... Rd6 {[%clk 0:01:53.5]} 31. Qc5 {[%clk 0:00:56.1]} 31... Re6 {[%clk
0:01:53.5]} 32. Qf5 {[%clk 0:00:53.4]} 32... Nd5 {[%clk 0:01:42.2]} 33. Rxc6
{[%clk 0:00:18.2]} 33... Qxc6 {[%clk 0:01:31.5]} 34. exd5 {[%clk 0:00:16.4]}
34... Qa4 {[%clk 0:01:31.6]} 35. Qxe6 {[%clk 0:00:09.2]} 35... Qxd1+ {[%clk
0:01:30.7]} 36. Kf2 {[%clk 0:00:09.7]} 36... Qxd4+ {[%clk 0:01:30.8]} 37. Kg3
{[%clk 0:00:10.3]} 37... g5 {[%clk 0:01:22.9]} 38. Qf5 {[%clk 0:00:01.6]} 38...
Qh4# {[%clk 0:01:21.6]} 0-1

[Event "Late-Titled-Tuesday-Blitz-July-09-2024"]
[Site "Chess.com"]
[Date "2024.07.09"]
[Round "2"]
[White "Caterpiller35"]
[Black "mac0504"]
[Result "0-1"]
[WhiteElo "2469"]
[BlackElo "2763"]
[TimeControl "180+1"]
[EndTime "14:17:09 PDT"]
[Termination "mac0504 won by resignation"]

1. d4 {[%clk 0:03:00]} 1... Nf6 {[%clk 0:02:59.1]} 2. Bg5 {[%clk 0:02:58.6]}
2... g6 {[%clk 0:02:58.4]} 3. Bxf6 {[%clk 0:02:58.4]} 3... exf6 {[%clk
0:02:59.3]} 4. e3 {[%clk 0:02:59.1]} 4... h5 {[%clk 0:02:59.8]} 5. c4 {[%clk
0:02:56.2]} 5... h4 {[%clk 0:02:57.6]} 6. Nc3 {[%clk 0:02:56.2]} 6... d6 {[%clk
0:02:55.8]} 7. Be2 {[%clk 0:02:56.1]} 7... Bg7 {[%clk 0:02:52.2]} 8. Bf3 {[%clk
0:02:56.1]} 8... c6 {[%clk 0:02:52.6]} 9. Nge2 {[%clk 0:02:55.6]} 9... Na6
{[%clk 0:02:52.7]} 10. Rb1 {[%clk 0:02:52.7]} 10... Nc7 {[%clk 0:02:52.9]} 11.
b4 {[%clk 0:02:51.6]} 11... Ne6 {[%clk 0:02:53.1]} 12. b5 {[%clk 0:02:49.2]}
12... Ng5 {[%clk 0:02:49.7]} 13. Nf4 {[%clk 0:02:13.2]} 13... Bd7 {[%clk
0:02:48.1]} 14. bxc6 {[%clk 0:02:12.1]} 14... bxc6 {[%clk 0:02:49]} 15. O-O
{[%clk 0:02:03.8]} 15... O-O {[%clk 0:01:53.5]} 16. Be2 {[%clk 0:01:59]} 16...
Re8 {[%clk 0:01:48.4]} 17. Rb7 {[%clk 0:01:52]} 17... Bc8 {[%clk 0:01:45]} 18.
Rb3 {[%clk 0:01:49.7]} 18... Qa5 {[%clk 0:01:43.9]} 19. Qd2 {[%clk 0:01:41.1]}
19... h3 {[%clk 0:01:30.4]} 20. g3 {[%clk 0:01:34.4]} 20... Ba6 {[%clk
0:01:26.6]} 21. Rfb1 {[%clk 0:01:33.7]} 21... Bxc4 {[%clk 0:01:25.3]} 22. Rb4
{[%clk 0:01:12]} 22... Bxe2 {[%clk 0:01:24.4]} 23. Qxe2 {[%clk 0:01:08.4]} 23...
f5 {[%clk 0:01:06.5]} 24. Qc4 {[%clk 0:00:57.1]} 24... Nf3+ {[%clk 0:01:03.5]}
25. Kh1 {[%clk 0:00:56.3]} 25... Nd2 {[%clk 0:01:03.9]} 26. Qd3 {[%clk
0:00:41.6]} 26... Nxb1 {[%clk 0:01:02.8]} 27. Rxb1 {[%clk 0:00:42.5]} 27... Rab8
{[%clk 0:00:59.4]} 28. Rg1 {[%clk 0:00:41.1]} 28... c5 {[%clk 0:00:51]} 29. Ncd5
{[%clk 0:00:38.5]} 29... cxd4 {[%clk 0:00:49.6]} 30. exd4 {[%clk 0:00:39.4]}
30... Re4 {[%clk 0:00:40]} 31. g4 {[%clk 0:00:37.6]} 31... Rxd4 {[%clk 0:00:38]}
32. Qxh3 {[%clk 0:00:37.6]} 32... Rxd5 {[%clk 0:00:37.1]} 33. gxf5 {[%clk
0:00:38]} 33... Rxf5 {[%clk 0:00:37]} 0-1